fUST/lending_fUST_20250624
["ID","MTS","AMOUNT","RATE_DAILY","PERIOD"]
[367331972,1750753843416,-460.0,0.00019178,2]
[367331973,1750753843426,-460.0,0.00019178,2]
[367331974,1750753843436,-462.97480274,0.00019178,2]
[367331975,1750753843445,-460.0,0.00019178,2]
[367331976,1750753843455,-578.07,0.00019178,2]
[367331977,1750753843464,-460.0,0.00019178,2]
[367331978,1750753843474,-460.0,0.00019178,2]
[367331979,1750753843484,-460.0,0.00019178,2]
[367331980,1750753843493,-460.0,0.00019178,2]
[367331981,1750753843503,-460.0,0.00019178,2]
[367331982,1750753843512,-460.0,0.00019178,2]
[367331983,1750753843521,-460.0,0.00019178,2]
[367331985,1750753843530,-735.87,0.00019178,2]
[367331986,1750753843541,-471.2,0.00019178,2]
[367331987,1750753843551,-460.0,0.00019178,2]
[367331988,1750753843652,-460.0,0.00019178,2]
[367331989,1750753843661,-460.0,0.00019178,2]
[367331990,1750753843671,-460.0,0.00019178,2]
[367331991,1750753843680,-1246.9,0.00019178,2]
[367331992,1750753843689,-460.0,0.00019178,2]
[367331993,1750753843698,-243.94059244,0.00019178,2]
[367331994,1750753843707,-917.49,0.00019178,2]
[367331995,1750753843716,-167.54580761,0.00019178,2]
[367331996,1750753843726,-460.0,0.00019178,2]
[367331997,1750753843735,-4012.53,0.00019178,2]
[367331998,1750753843744,-460.0,0.00019178,2]
[367331999,1750753843753,-460.0,0.00019178,2]
[367332000,1750753843762,-460.0,0.00019178,2]
[367332001,1750753843771,-1024.0,0.00019178,2]
[367332002,1750753843781,-460.0,0.00019178,2]
[367332003,1750753843790,-460.0,0.00019178,2]
[367332004,1750753843800,-460.0,0.00019178,2]
[367332005,1750753843809,-2174.0,0.00019178,2]
[367332006,1750753843819,-1810.6,0.00019178,2]
[367332007,1750753843828,-460.0,0.00019178,2]
[367332008,1750753843838,-460.0,0.00019178,2]
[367332009,1750753843847,-460.0,0.00019178,2]
[367332010,1750753843856,-392.78897617,0.00019178,2]
[367332011,1750753843866,-460.0,0.00019178,2]
[367332012,1750753843876,-460.0,0.00019178,2]
[367332013,1750753843886,-1309.59,0.00019178,2]
[367332014,1750753843896,-1309.59,0.00019178,2]
[367332015,1750753843905,-460.0,0.00019178,2]
[367332016,1750753843914,-1309.59,0.00019178,2]
[367332017,1750753843924,-1309.59,0.00019178,2]
[367332018,1750753843933,-1309.59,0.00019178,2]
[367332019,1750753843942,-1309.59,0.00019178,2]
[367332020,1750753843951,-1309.59,0.00019178,2]
[367332021,1750753843961,-460.0,0.00019178,2]
[367332022,1750753843970,-1309.59,0.00019178,2]
[367332023,1750753843980,-1309.59,0.00019178,2]
[367332024,1750753843989,-1309.59,0.00019178,2]
[367332025,1750753843998,-1309.59,0.00019178,2]
[367332026,1750753844007,-1309.59,0.00019178,2]
[367332027,1750753844016,-1309.59,0.00019178,2]
[367332028,1750753844025,-1309.59,0.00019178,2]
[367332029,1750753844034,-460.0,0.00019178,2]
[367332030,1750753844044,-1309.59,0.00019178,2]
[367332031,1750753844053,-1309.59,0.00019178,2]
[367332032,1750753844063,-1309.59,0.00019178,2]
[367332033,1750753844072,-1309.59,0.00019178,2]
[367332034,1750753844081,-1309.59,0.00019178,2]
[367332035,1750753844090,-1309.59,0.00019178,2]
[367332036,1750753844098,-337.62674489,0.00019178,2]
[367332037,1750753844107,-1309.59,0.00019178,2]
[367332038,1750753844116,-1309.59,0.00019178,2]
[367332039,1750753844125,-460.0,0.00019178,2]
[367332040,1750753844135,-1309.59,0.00019178,2]
[367332041,1750753844144,-460.0,0.00019178,2]
[367332042,1750753844154,-460.0,0.00019178,2]
[367332043,1750753844163,-1309.63166159,0.00019178,2]
[367332044,1750753844171,-460.0,0.00019178,2]
[367332045,1750753844180,-500.0,0.00019178,2]
[367332046,1750753844190,-500.0,0.00019178,2]
[367332047,1750753844199,-525.79485193,0.00019178,2]
[367332048,1750753844208,-3902.37,0.00019178,2]
[367332049,1750753844216,-1282.97,0.00019178,2]
[367332050,1750753844227,-460.0,0.00019178,2]
[367332051,1750753844238,-337.93745096,0.00019178,2]
[367332052,1750753844247,-460.0,0.00019178,2]
[367332053,1750753844256,-460.0,0.00019178,2]
[367332054,1750753844265,-460.0,0.00019178,2]
[367332055,1750753844277,-9554.89,0.00019178,2]
[367332056,1750753844286,-460.0,0.00019178,2]
[367332057,1750753844295,-286.65482973,0.00019178,2]
[367332058,1750753844305,-460.0,0.00019178,2]
[367332059,1750753844315,-460.0,0.00019178,2]
[367332060,1750753844324,-460.0,0.00019178,2]
[367332061,1750753844333,-460.0,0.00019178,2]
[367332062,1750753844342,-348.55150417,0.00019178,2]
[367332063,1750753844352,-470.38,0.00019178,2]
[367332064,1750753844361,-460.0,0.00019178,2]
[367332065,1750753844370,-1536.12,0.00019178,2]
[367332066,1750753844379,-460.0,0.00019178,2]
[367332067,1750753844389,-460.0,0.00019178,2]
[367332068,1750753844398,-4596.98,0.00019178,2]
[367332069,1750753844408,-1383.99,0.00019178,2]
[367332070,1750753844417,-460.0,0.00019178,2]
[367332071,1750753844426,-827.88,0.00019178,2]
[367332072,1750753844435,-460.0,0.00019178,2]
[367332073,1750753844445,-500.0,0.00019178,2]
[367332074,1750753844454,-500.0,0.00019178,2]
[367332075,1750753844463,-475.38960573,0.00019178,2]
[367332076,1750753844473,-500.0,0.00019178,2]
[367332077,1750753844483,-500.0,0.00019178,2]
[367332078,1750753844492,-500.0,0.00019178,2]
[367332079,1750753844502,-500.0,0.00019178,2]
[367332080,1750753844513,-500.0,0.00019178,2]
[367332081,1750753844523,-500.0,0.00019178,2]
[367332082,1750753844533,-500.0,0.00019178,2]
[367332083,1750753844543,-260.95225659,0.00019178,2]
[367332084,1750753844553,-500.0,0.00019178,2]
[367332085,1750753844564,-500.0,0.00019178,2]
[367332086,1750753844573,-440.66,0.00019178,2]
[367332087,1750753844583,-1445.24,0.00019178,2]
[367332088,1750753844593,-460.0,0.00019178,2]
[367332089,1750753844603,-460.0,0.00019178,2]
[367332090,1750753844613,-460.0,0.00019178,2]
[367332091,1750753844623,-381.97526461,0.00019178,2]
[367332092,1750753844632,-460.0,0.00019178,2]
[367332093,1750753844643,-460.0,0.00019178,2]
[367332094,1750753844652,-460.0,0.00019178,2]
[367332095,1750753844661,-741.52,0.00019178,2]
[367332096,1750753844670,-1427.47,0.00019178,2]
[367332097,1750753844680,-460.0,0.00019178,2]
[367332098,1750753844690,-3721.17,0.00019178,2]
[367332099,1750753844699,-2744.12,0.00019178,2]
[367332100,1750753844710,-1425.02,0.00019178,2]
[367332101,1750753844720,-460.0,0.00019178,2]
[367332102,1750753844730,-460.0,0.00019178,2]
[367332103,1750753844740,-1214.81,0.00019178,2]
[367332104,1750753844749,-460.0,0.00019178,2]
[367332105,1750753844759,-460.0,0.00019178,2]
[367332106,1750753844768,-460.0,0.00019178,2]
[367332107,1750753844777,-460.0,0.00019178,2]
[367332108,1750753844786,-460.0,0.00019178,2]
[367332109,1750753844796,-460.0,0.00019178,2]
[367332110,1750753844805,-460.0,0.00019178,2]
[367332111,1750753844814,-460.0,0.00019178,2]
[367332112,1750753844823,-460.0,0.00019178,2]
[367332113,1750753844832,-460.0,0.00019178,2]
[367332114,1750753844841,-460.0,0.00019178,2]
[367332115,1750753844850,-460.0,0.00019178,2]
[367332116,1750753844859,-460.0,0.00019178,2]
[367332117,1750753844869,-460.0,0.00019178,2]
[367332118,1750753844878,-460.0,0.00019178,2]
[367332119,1750753844888,-460.0,0.00019178,2]
[367332120,1750753844897,-500.0,0.00019178,2]
[367332121,1750753844906,-460.0,0.00019178,2]
[367332122,1750753844916,-432.17067932,0.00019178,2]
[367332123,1750753844926,-460.0,0.00019178,2]
[367332124,1750753844935,-460.0,0.00019178,2]
[367332125,1750753844945,-151.0,0.000192,2]
[367332126,1750753844955,-151.0,0.000192,2]
[367332127,1750753844965,-151.0,0.000192,2]
[367332128,1750753844974,-6750.3562104,0.00019284,2]
[367332129,1750753844984,-151.0,0.000193,2]
[367332130,1750753844993,-151.0,0.000193,2]
[367332131,1750753845002,-4671.18968278,0.00019306,2]
[367332132,1750753845011,-276.0,0.00019326,2]
[367332133,1750753845021,-196.0,0.00019342,2]
[367332134,1750753845030,-500.0,0.00019379,2]
[367332135,1750753845039,-196.0,0.00019385,2]
[367332136,1750753845048,-151.0,0.000194,2]
[367332137,1750753845057,-151.0,0.000194,2]
[367332138,1750753845067,-151.0,0.000194,2]
[367332139,1750753845077,-460.0,0.00019452,2]
[367332140,1750753845087,-460.0,0.00019452,2]
[367332141,1750753845098,-460.0,0.00019452,2]
[367332142,1750753845108,-527.88615457,0.00019452,2]
[367332143,1750753845118,-460.0,0.00019452,2]
[367332144,1750753845129,-460.0,0.00019452,2]
[367332145,1750753845139,-460.0,0.00019452,2]
[367332146,1750753845149,-460.0,0.00019452,2]
[367332147,1750753845159,-460.0,0.00019452,2]
[367332148,1750753845168,-460.0,0.00019452,2]
[367332149,1750753845177,-460.0,0.00019452,2]
[367332150,1750753845186,-460.0,0.00019452,2]
[367332151,1750753845195,-460.0,0.00019452,2]
[367332152,1750753845204,-460.0,0.00019452,2]
[367332153,1750753845214,-460.0,0.00019452,2]
[367332154,1750753845223,-460.0,0.00019452,2]
[367332155,1750753845233,-460.0,0.00019452,2]
[367332156,1750753845243,-460.0,0.00019452,2]
[367332157,1750753845252,-460.0,0.00019452,2]
[367332158,1750753845261,-233.4846379,0.00019452,2]
[367332159,1750753845271,-460.0,0.00019452,2]
[367332160,1750753845280,-153.96031235,0.00019452,2]
[367332161,1750753845290,-460.0,0.00019452,2]
[367332162,1750753845299,-460.0,0.00019452,2]
[367332163,1750753845310,-460.0,0.00019452,2]
[367332164,1750753845319,-519.63,0.00019452,2]
[367332165,1750753845419,-506.34,0.00019452,2]
[367332166,1750753845428,-460.0,0.00019452,2]
[367332167,1750753845438,-460.0,0.00019452,2]
[367332168,1750753845448,-460.0,0.00019452,2]
[367332169,1750753845458,-460.0,0.00019452,2]
[367332171,1750753845468,-460.0,0.00019452,2]
[367332172,1750753845477,-597.57,0.00019452,2]
[367332173,1750753845487,-460.0,0.00019452,2]
[367332174,1750753845496,-460.0,0.00019452,2]
[367332175,1750753845505,-460.0,0.00019452,2]
[367332176,1750753845515,-460.0,0.00019452,2]
[367332177,1750753845524,-470.32936744,0.00019452,2]
[367332178,1750753845534,-460.0,0.00019452,2]
[367332179,1750753845543,-460.0,0.00019452,2]
[367332180,1750753845552,-460.0,0.00019452,2]
[367332181,1750753845561,-460.0,0.00019452,2]
[367332182,1750753845571,-460.0,0.00019452,2]
[367332183,1750753845590,-460.0,0.00019452,2]
[367332184,1750753845600,-897.7,0.00019452,2]
[367332185,1750753845610,-465.52436902,0.00019452,2]
[367332186,1750753845620,-460.0,0.00019452,2]
[367332187,1750753845630,-460.0,0.00019452,2]
[367332188,1750753845640,-460.0,0.00019452,2]
[367332189,1750753845650,-460.0,0.00019452,2]
[367332190,1750753845660,-460.0,0.00019452,2]
[367332191,1750753845670,-460.0,0.00019452,2]
[367332192,1750753845679,-460.0,0.00019452,2]
[367332193,1750753845689,-460.0,0.00019452,2]
[367332194,1750753845699,-460.0,0.00019452,2]
[367332195,1750753845709,-460.0,0.00019452,2]
[367332196,1750753845720,-464.62217338,0.00019452,2]
[367332197,1750753845730,-565.56,0.00019452,2]
[367332198,1750753845740,-460.0,0.00019452,2]
[367332199,1750753845750,-473.46,0.00019452,2]
[367332200,1750753845761,-460.0,0.00019452,2]
[367332201,1750753845771,-460.0,0.00019452,2]
[367332202,1750753845781,-460.0,0.00019452,2]
[367332203,1750753845791,-460.0,0.00019452,2]
[367332204,1750753845802,-460.0,0.00019452,2]
[367332205,1750753845811,-460.0,0.00019452,2]
[367332206,1750753845822,-1570.91,0.00019452,2]
[367332207,1750753845832,-460.0,0.00019452,2]
[367332208,1750753845842,-460.0,0.00019452,2]
[367332209,1750753845852,-460.0,0.00019452,2]
[367332210,1750753845862,-460.0,0.00019452,2]
[367332211,1750753845871,-272.61327056,0.00019452,2]
[367332212,1750753845881,-460.0,0.00019452,2]
[367332213,1750753845891,-500.0,0.00019452,2]
[367332214,1750753845901,-460.0,0.00019452,2]
[367332215,1750753845911,-1063.33,0.00019452,2]
[367332216,1750753845921,-460.0,0.00019452,2]
[367332217,1750753845931,-460.0,0.00019452,2]
[367332218,1750753845940,-460.0,0.00019452,2]
[367332219,1750753845949,-460.0,0.00019452,2]
[367332220,1750753845959,-460.0,0.00019452,2]
[367332221,1750753845968,-460.0,0.00019452,2]
[367332222,1750753845978,-460.0,0.00019452,2]
[367332223,1750753845988,-460.0,0.00019452,2]
[367332224,1750753845997,-460.0,0.00019452,2]
[367332225,1750753846007,-460.0,0.00019452,2]
[367332226,1750753846017,-460.0,0.00019452,2]
[367332227,1750753846026,-460.0,0.00019452,2]
[367332228,1750753846036,-460.0,0.00019452,2]
[367332229,1750753846045,-1236.02,0.00019452,2]
[367332230,1750753846055,-460.0,0.00019452,2]
[367332231,1750753846065,-460.0,0.00019452,2]
[367332232,1750753846075,-432.56802118,0.00019452,2]
[367332233,1750753846084,-460.0,0.00019452,2]
[367332234,1750753846094,-460.0,0.00019452,2]
[367332235,1750753846103,-460.0,0.00019452,2]
[367332236,1750753846113,-460.0,0.00019452,2]
[367332237,1750753846123,-460.0,0.00019452,2]
[367332238,1750753846133,-764.46,0.00019452,2]
[367332239,1750753846142,-505.75,0.00019452,2]
[367332240,1750753846152,-460.0,0.00019452,2]
[367332241,1750753846162,-460.0,0.00019452,2]
[367332242,1750753846171,-460.0,0.00019452,2]
[367332243,1750753846181,-460.0,0.00019452,2]
[367332244,1750753846191,-460.0,0.00019452,2]
[367332245,1750753846201,-460.0,0.00019452,2]
[367332246,1750753846211,-460.0,0.00019452,2]
[367332247,1750753846220,-460.0,0.00019452,2]
[367332248,1750753846233,-460.0,0.00019452,2]
[367332249,1750753846242,-463.06845922,0.00019452,2]
[367332250,1750753846252,-460.0,0.00019452,2]
[367332251,1750753846262,-460.0,0.00019452,2]
[367332252,1750753846272,-460.0,0.00019452,2]
[367332253,1750753846282,-460.0,0.00019452,2]
[367332254,1750753846291,-460.0,0.00019452,2]
[367332255,1750753846302,-460.0,0.00019452,2]
[367332256,1750753846316,-460.0,0.00019452,2]
[367332257,1750753846326,-460.0,0.00019452,2]
[367332258,1750753846336,-460.0,0.00019452,2]
[367332259,1750753846345,-460.0,0.00019452,2]
[367332260,1750753846355,-3596.87,0.00019452,2]
[367332261,1750753846365,-460.0,0.00019452,2]
[367332262,1750753846374,-553.59,0.00019452,2]
[367332263,1750753846383,-1102.05,0.00019452,2]
[367332264,1750753846393,-460.0,0.00019452,2]
[367332265,1750753846402,-460.0,0.00019452,2]
[367332266,1750753846412,-460.0,0.00019452,2]
[367332267,1750753846422,-460.0,0.00019452,2]
[367332268,1750753846431,-460.0,0.00019452,2]
[367332269,1750753846440,-460.0,0.00019452,2]
[367332270,1750753846450,-1669.02,0.00019452,2]
[367332271,1750753846460,-460.0,0.00019452,2]
[367332272,1750753846470,-460.22,0.00019452,2]
[367332273,1750753846480,-460.0,0.00019452,2]
[367332274,1750753846490,-460.0,0.00019452,2]
[367332275,1750753846499,-460.0,0.00019452,2]
[367332276,1750753846509,-1429.9,0.00019452,2]
[367332277,1750753846519,-1393.46,0.00019452,2]
[367332278,1750753846530,-4047.25,0.00019452,2]
[367332279,1750753846539,-460.0,0.00019452,2]
[367332280,1750753846548,-460.0,0.00019452,2]
[367332281,1750753846557,-1153.41,0.00019452,2]
[367332282,1750753846567,-460.0,0.00019452,2]
[367332283,1750753846576,-460.0,0.00019452,2]
[367332284,1750753846585,-460.0,0.00019452,2]
[367332285,1750753846595,-460.0,0.00019452,2]
[367332286,1750753846604,-460.0,0.00019452,2]
[367332287,1750753846614,-460.0,0.00019452,2]
[367332288,1750753846623,-460.0,0.00019452,2]
[367332289,1750753846633,-460.0,0.00019452,2]
[367332290,1750753846646,-1245.34,0.00019452,2]
[367332291,1750753846656,-460.0,0.00019452,2]
[367332292,1750753846665,-460.0,0.00019452,2]
[367332293,1750753846675,-1260.54,0.00019452,2]
[367332294,1750753846684,-460.0,0.00019452,2]
[367332295,1750753846694,-460.0,0.00019452,2]
[367332296,1750753846703,-482.09840304,0.00019452,2]
[367332297,1750753846714,-445.19212717,0.00019452,2]
[367332298,1750753846723,-460.0,0.00019452,2]
[367332299,1750753846733,-460.0,0.00019452,2]
[367332300,1750753846742,-460.0,0.00019452,2]
[367332301,1750753846751,-460.0,0.00019452,2]
[367332302,1750753846761,-460.0,0.00019452,2]
[367332303,1750753846771,-430.0,0.00019452,2]
[367332304,1750753846780,-1307.67,0.00019452,2]
[367332305,1750753846790,-460.0,0.00019452,2]
[367332306,1750753846800,-3803.53,0.00019452,2]
[367332307,1750753846809,-632.19,0.00019452,2]
[367332308,1750753846820,-460.0,0.00019452,2]
[367332309,1750753846830,-460.0,0.00019452,2]
[367332310,1750753846840,-410.0,0.00019452,2]
[367332311,1750753846849,-2444.82,0.00019452,2]
[367332312,1750753846858,-460.0,0.00019452,2]
[367332313,1750753846868,-460.0,0.00019452,2]
[367332314,1750753846878,-430.0,0.00019452,2]
[367332315,1750753846887,-495.64,0.00019452,2]
[367332316,1750753846896,-500.0,0.00019452,2]
[367332317,1750753846905,-4883.92,0.00019452,2]
[367332318,1750753846914,-460.0,0.00019452,2]
[367332319,1750753846924,-460.0,0.00019452,2]
[367332320,1750753846934,-460.0,0.00019452,2]
[367332321,1750753846944,-429.64507693,0.00019452,2]
[367332322,1750753846954,-460.0,0.00019452,2]
[367332323,1750753846964,-460.0,0.00019452,2]
[367332324,1750753846973,-460.0,0.00019452,2]
[367332325,1750753846983,-524.71,0.00019452,2]
[367332326,1750753846992,-1033.7,0.00019452,2]
[367332327,1750753847001,-460.0,0.00019452,2]
[367332328,1750753847114,-1169.19,0.00019452,2]
[367332329,1750753847131,-460.0,0.00019452,2]
[367332330,1750753847140,-460.0,0.00019452,2]
[367332331,1750753847149,-993.21,0.00019452,2]
[367332332,1750753847159,-460.0,0.00019452,2]
[367332333,1750753847169,-460.0,0.00019452,2]
[367332334,1750753847178,-393.85665487,0.00019452,2]
[367332335,1750753847187,-460.0,0.00019452,2]
[367332336,1750753847197,-460.0,0.00019452,2]
[367332337,1750753847206,-460.0,0.00019452,2]
[367332338,1750753847216,-460.0,0.00019452,2]
[367332339,1750753847226,-460.0,0.00019452,2]
[367332340,1750753847239,-2909.68,0.00019452,2]
[367332341,1750753847249,-460.0,0.00019452,2]
[367332342,1750753847258,-385.65380767,0.00019452,2]
[367332343,1750753847267,-460.0,0.00019452,2]
[367332344,1750753847276,-460.0,0.00019452,2]
[367332345,1750753847285,-460.0,0.00019452,2]
[367332346,1750753847294,-460.0,0.00019452,2]
[367332347,1750753847305,-970.5,0.00019452,2]
[367332348,1750753847315,-218.62594825,0.00019452,2]
[367332349,1750753847326,-460.0,0.00019452,2]
[367332350,1750753847335,-1536.63,0.00019452,2]
[367332351,1750753847344,-461.40834385,0.00019452,2]
[367332352,1750753847354,-460.0,0.00019452,2]
[367332353,1750753847364,-4779.35,0.00019452,2]
[367332354,1750753847373,-559.38,0.00019452,2]
[367332355,1750753847382,-460.0,0.00019452,2]
[367332356,1750753847392,-422.61235914,0.00019452,2]
[367332357,1750753847401,-460.0,0.00019452,2]
[367332358,1750753847410,-460.0,0.00019452,2]
[367332359,1750753847419,-460.0,0.00019452,2]
[367332360,1750753847429,-460.0,0.00019452,2]
[367332361,1750753847438,-784.58,0.00019452,2]
[367332362,1750753847447,-460.0,0.00019452,2]
[367332363,1750753847456,-490.83,0.00019452,2]
[367332364,1750753847466,-3740.04,0.00019452,2]
[367332365,1750753847475,-460.0,0.00019452,2]
[367332366,1750753847485,-470.15438063,0.00019452,2]
[367332367,1750753847496,-460.0,0.00019452,2]
[367332368,1750753847506,-460.0,0.00019452,2]
[367332369,1750753847514,-578.07,0.00019452,2]
[367332370,1750753847524,-550.90009187,0.00019452,2]
[367332371,1750753847533,-599.46925891,0.00019452,2]
[367332372,1750753847542,-460.0,0.00019452,2]
[367332373,1750753847551,-460.0,0.00019452,2]
[367332374,1750753847560,-460.0,0.00019452,2]
[367332375,1750753847570,-460.0,0.00019452,2]
[367332376,1750753847580,-460.0,0.00019452,2]
[367332377,1750753847589,-735.87,0.00019452,2]
[367332378,1750753847598,-471.2,0.00019452,2]
[367332379,1750753847607,-460.0,0.00019452,2]
[367332380,1750753847616,-460.0,0.00019452,2]
[367332381,1750753847625,-460.0,0.00019452,2]
[367332382,1750753847634,-1246.9,0.00019452,2]
[367332383,1750753847644,-460.0,0.00019452,2]
[367332384,1750753847653,-460.0,0.00019452,2]
[367332385,1750753847662,-917.49,0.00019452,2]
[367332386,1750753847671,-460.0,0.00019452,2]
[367332387,1750753847680,-4012.53,0.00019452,2]
[367332388,1750753847690,-460.0,0.00019452,2]
[367332389,1750753847699,-460.0,0.00019452,2]
[367332390,1750753847709,-460.0,0.00019452,2]
[367332391,1750753847718,-1024.0,0.00019452,2]
[367332392,1750753847727,-460.0,0.00019452,2]
[367332393,1750753847736,-460.0,0.00019452,2]
[367332394,1750753847746,-2174.0,0.00019452,2]
[367332395,1750753847755,-1810.6,0.00019452,2]
[367332396,1750753847765,-460.0,0.00019452,2]
[367332397,1750753847775,-460.0,0.00019452,2]
[367332398,1750753847784,-460.0,0.00019452,2]
[367332399,1750753847794,-460.0,0.00019452,2]
[367332400,1750753847804,-460.0,0.00019452,2]
[367332401,1750753847814,-358.00059963,0.00019452,2]
[367332402,1750753847824,-460.0,0.00019452,2]
[367332403,1750753847834,-460.0,0.00019452,2]
[367332404,1750753847844,-460.0,0.00019452,2]
[367332405,1750753847854,-484.06279034,0.00019452,2]
[367332406,1750753847864,-3902.37,0.00019452,2]
[367332407,1750753847873,-1282.97,0.00019452,2]
[367332408,1750753847883,-460.0,0.00019452,2]
[367332409,1750753847892,-460.0,0.00019452,2]
[367332410,1750753847902,-460.0,0.00019452,2]
[367332411,1750753847910,-460.0,0.00019452,2]
[367332412,1750753847920,-460.0,0.00019452,2]
[367332413,1750753847930,-9554.89,0.00019452,2]
[367332414,1750753847939,-460.0,0.00019452,2]
[367332415,1750753847949,-460.0,0.00019452,2]
[367332416,1750753847958,-460.0,0.00019452,2]
[367332417,1750753847968,-462.76981906,0.00019452,2]
[367332418,1750753847977,-470.38,0.00019452,2]
[367332419,1750753847986,-1536.12,0.00019452,2]
[367332420,1750753847996,-460.0,0.00019452,2]
[367332421,1750753848005,-460.0,0.00019452,2]
[367332422,1750753848015,-4596.98,0.00019452,2]
[367332423,1750753848024,-460.0,0.00019452,2]
[367332424,1750753848034,-827.88,0.00019452,2]
[367332425,1750753848044,-1383.99,0.00019452,2]
[367332426,1750753848053,-460.0,0.00019452,2]
[367332427,1750753848064,-1445.24,0.00019452,2]
[367332428,1750753848073,-460.0,0.00019452,2]
[367332429,1750753848085,-460.0,0.00019452,2]
[367332430,1750753848094,-460.0,0.00019452,2]
[367332431,1750753848103,-460.0,0.00019452,2]
[367332432,1750753848113,-741.52,0.00019452,2]
[367332433,1750753848123,-460.0,0.00019452,2]
[367332434,1750753848133,-3721.17,0.00019452,2]
[367332435,1750753848143,-1427.47,0.00019452,2]
[367332436,1750753848154,-2744.12,0.00019452,2]
[367332437,1750753848164,-1425.02,0.00019452,2]
[367332438,1750753848173,-460.0,0.00019452,2]
[367332439,1750753848183,-1214.81,0.00019452,2]
[367332440,1750753848193,-392.50022847,0.00019452,2]
[367332441,1750753848203,-460.0,0.00019452,2]
[367332442,1750753848213,-460.0,0.00019452,2]
[367332443,1750753848224,-460.0,0.00019452,2]
[367332444,1750753848241,-460.0,0.00019452,2]
[367332445,1750753848252,-460.0,0.00019452,2]
[367332446,1750753848262,-460.0,0.00019452,2]
[367332447,1750753848272,-460.0,0.00019452,2]
[367332448,1750753848282,-460.0,0.00019452,2]
[367332449,1750753848291,-460.0,0.00019452,2]
[367332450,1750753848300,-460.0,0.00019452,2]
[367332451,1750753848312,-460.0,0.00019452,2]
[367332452,1750753848322,-460.0,0.00019452,2]
[367332453,1750753848331,-500.0,0.00019452,2]
[367332454,1750753848340,-460.0,0.00019452,2]
[367332455,1750753848350,-460.0,0.00019452,2]
[367332456,1750753848359,-460.0,0.00019452,2]
[367332457,1750753848369,-6750.3562104,0.00019489,2]
[367332458,1750753848379,-151.0,0.000195,2]
[367332459,1750753848388,-1483.54278816,0.000195,2]
[367332460,1750753848397,-151.0,0.000195,2]
[367332461,1750753848407,-151.0,0.000195,2]
[367332462,1750753848416,-286.0,0.00019515,3]
[367332463,1750753848426,-334.0,0.00019524,2]
[367332464,1750753848436,-196.0,0.00019555,2]
[367332465,1750753848446,-196.0,0.0001957,2]
[367332466,1750753848455,-151.0,0.000196,2]
[367332467,1750753848464,-151.0,0.000196,2]
[367332468,1750753848473,-151.0,0.000196,2]
[367332469,1750753848483,-500.0,0.00019653,2]
[367332470,1750753848493,-6750.3562104,0.00019695,2]
[367332471,1750753848502,-831.29355679,0.00019697,2]
[367332472,1750753848512,-151.0,0.000197,2]
[367332473,1750753848521,-151.0,0.000197,2]